[Event "Betsys MČR v online bleskovém šachu 2021"]
[Site "Chess.com"]
[Date "2021.04.17"]
[Round "2"]
[White "kalcs"]
[Black "MilosJi"]
[Result "0-1"]
[WhiteElo "2088"]
[BlackElo "2610"]
[TimeControl "180+1"]
[EndTime "9:15:13 PDT"]
[Termination "Uživatel MilosJi zvítězil matem"]

1. e4 {[%clk 0:02:59.1]} 1... d5 {[%clk 0:02:59.4]} 2. exd5 {[%clk 0:02:58.7]}
2... Qxd5 {[%clk 0:03:00.3]} 3. Nc3 {[%clk 0:02:58.7]} 3... Qd6 {[%clk
0:03:00.4]} 4. d4 {[%clk 0:02:58.7]} 4... Nf6 {[%clk 0:03:00.4]} 5. Nf3 {[%clk
0:02:54.1]} 5... c6 {[%clk 0:03:00.5]} 6. Bc4 {[%clk 0:02:48.8]} 6... Bf5 {[%clk
0:02:53.3]} 7. O-O {[%clk 0:02:47.3]} 7... e6 {[%clk 0:02:53.2]} 8. Re1 {[%clk
0:02:46]} 8... Be7 {[%clk 0:02:49.4]} 9. Be3 {[%clk 0:02:32.7]} 9... O-O {[%clk
0:02:48.7]} 10. h3 {[%clk 0:02:32.2]} 10... Nbd7 {[%clk 0:02:48.5]} 11. Bd3
{[%clk 0:02:30]} 11... Bg6 {[%clk 0:02:47.8]} 12. Bxg6 {[%clk 0:02:27.7]} 12...
hxg6 {[%clk 0:02:47.8]} 13. Qe2 {[%clk 0:02:21.4]} 13... Rfd8 {[%clk 0:02:44.7]}
14. a3 {[%clk 0:02:20.1]} 14... Qc7 {[%clk 0:02:44.4]} 15. Rad1 {[%clk
0:02:19.2]} 15... a5 {[%clk 0:02:42.9]} 16. Bg5 {[%clk 0:02:10]} 16... Re8
{[%clk 0:02:32]} 17. Qd2 {[%clk 0:01:51.8]} 17... Nd5 {[%clk 0:02:23.6]} 18.
Nxd5 {[%clk 0:01:50.3]} 18... cxd5 {[%clk 0:02:23]} 19. Bxe7 {[%clk 0:01:48.9]}
19... Rxe7 {[%clk 0:02:23.3]} 20. c3 {[%clk 0:01:44.9]} 20... b5 {[%clk
0:02:22.4]} 21. b4 {[%clk 0:01:32.8]} 21... axb4 {[%clk 0:02:21.5]} 22. axb4
{[%clk 0:01:31.8]} 22... Nb6 {[%clk 0:02:18.2]} 23. Qd3 {[%clk 0:01:20.2]} 23...
Nc4 {[%clk 0:02:18]} 24. Ra1 {[%clk 0:01:15.1]} 24... Qb8 {[%clk 0:02:16.7]} 25.
Rxa8 {[%clk 0:01:12.9]} 25... Qxa8 {[%clk 0:02:16.1]} 26. h4 {[%clk 0:01:11.6]}
26... Ra7 {[%clk 0:02:10.1]} 27. Ng5 {[%clk 0:01:05.9]} 27... Qd8 {[%clk
0:02:09.8]} 28. f4 {[%clk 0:00:53.2]} 28... Qf6 {[%clk 0:02:02.9]} 29. g3 {[%clk
0:00:52.3]} 29... Qf5 {[%clk 0:02:01.7]} 30. Qf3 {[%clk 0:00:46.6]} 30... Ra2
{[%clk 0:01:58.7]} 31. h5 {[%clk 0:00:45.1]} 31... Qc2 {[%clk 0:01:52.9]} 32.
hxg6 {[%clk 0:00:39.5]} 32... Qh2+ {[%clk 0:01:52.3]} 33. Kf1 {[%clk 0:00:39.5]}
33... Nd2# {[%clk 0:01:52.5]} 0-1

[Event "Betsys MČR v online bleskovém šachu 2021"]
[Site "Chess.com"]
[Date "2021.04.17"]
[Round "2"]
[White "rakintsev"]
[Black "Ondre2836"]
[Result "1-0"]
[WhiteElo "1774"]
[BlackElo "1298"]
[TimeControl "180+1"]
[EndTime "9:15:22 PDT"]
[Termination "Uživatel rakintsev zvítězil matem"]

1. e4 {[%clk 0:03:00.9]} 1... d5 {[%clk 0:02:59.4]} 2. exd5 {[%clk 0:03:00.2]}
2... Qxd5 {[%clk 0:02:58.9]} 3. Nc3 {[%clk 0:03:00.1]} 3... Qa5 {[%clk
0:02:58.8]} 4. b4 {[%clk 0:02:59.1]} 4... Qxb4 {[%clk 0:02:56]} 5. Rb1 {[%clk
0:02:58.8]} 5... Qa5 {[%clk 0:02:54.1]} 6. Rb5 {[%clk 0:02:57.7]} 6... Qa6
{[%clk 0:02:47.2]} 7. Nf3 {[%clk 0:02:57.5]} 7... Qf6 {[%clk 0:02:44.4]} 8. d4
{[%clk 0:02:48.2]} 8... Bg4 {[%clk 0:02:39.7]} 9. Be2 {[%clk 0:02:45.1]} 9...
Qc6 {[%clk 0:02:31.9]} 10. Qd3 {[%clk 0:02:27.4]} 10... a6 {[%clk 0:02:26.8]}
11. Rc5 {[%clk 0:02:25.2]} 11... Qd6 {[%clk 0:02:24.9]} 12. Ne4 {[%clk
0:02:15.3]} 12... Qd7 {[%clk 0:02:13.7]} 13. Rg5 {[%clk 0:01:51.4]} 13... Nc6
{[%clk 0:02:04.8]} 14. d5 {[%clk 0:01:40.2]} 14... Nb4 {[%clk 0:01:57.7]} 15.
Qc4 {[%clk 0:01:29]} 15... a5 {[%clk 0:01:52.8]} 16. Nc5 {[%clk 0:01:10.4]}
16... Qd6 {[%clk 0:01:47.5]} 17. Bf4 {[%clk 0:01:07.1]} 17... Qd8 {[%clk
0:01:45.8]} 18. Nxb7 {[%clk 0:01:05.4]} 18... Qb8 {[%clk 0:01:44.9]} 19. Qb5+
{[%clk 0:01:02.1]} 19... c6 {[%clk 0:01:40.5]} 20. dxc6 {[%clk 0:00:59]} 20...
Ra7 {[%clk 0:01:36.6]} 21. Bxb8 {[%clk 0:00:56.9]} 21... Ra8 {[%clk 0:01:34.4]}
22. c7+ {[%clk 0:00:54.8]} 22... Bd7 {[%clk 0:01:34]} 23. Qc4 {[%clk 0:00:46.3]}
23... Ra6 {[%clk 0:01:26.5]} 24. c8=Q+ {[%clk 0:00:44.6]} 24... Bxc8 {[%clk
0:01:25.8]} 25. Qxc8# {[%clk 0:00:44.3]} 1-0

[Event "Betsys MČR v online bleskovém šachu 2021"]
[Site "Chess.com"]
[Date "2021.04.17"]
[Round "2"]
[White "Diamantidis_13"]
[Black "Tolja1"]
[Result "1-0"]
[WhiteElo "2441"]
[BlackElo "2031"]
[TimeControl "180+1"]
[EndTime "9:15:27 PDT"]
[Termination "Uživatel Diamantidis_13 zvítězil po vzdání soupeře"]

1. Nf3 {[%clk 0:03:00.9]} 1... e6 {[%clk 0:02:59.3]} 2. c4 {[%clk 0:03:00]} 2...
f5 {[%clk 0:02:58.6]} 3. g3 {[%clk 0:02:57.8]} 3... Nf6 {[%clk 0:02:58]} 4. Bg2
{[%clk 0:02:58.3]} 4... d5 {[%clk 0:02:58]} 5. O-O {[%clk 0:02:56.1]} 5... c6
{[%clk 0:02:57.6]} 6. b3 {[%clk 0:02:56.4]} 6... Be7 {[%clk 0:02:56.1]} 7. Ba3
{[%clk 0:02:54.7]} 7... Bxa3 {[%clk 0:02:55.2]} 8. Nxa3 {[%clk 0:02:54.2]} 8...
Qe7 {[%clk 0:02:55.2]} 9. Qc1 {[%clk 0:02:49.4]} 9... O-O {[%clk 0:02:53]} 10.
d4 {[%clk 0:02:47.9]} 10... Ne4 {[%clk 0:02:39.1]} 11. Qb2 {[%clk 0:02:44.4]}
11... Nd7 {[%clk 0:02:37.3]} 12. Nc2 {[%clk 0:02:43.9]} 12... Ndf6 {[%clk
0:02:30.9]} 13. Nce1 {[%clk 0:02:41.4]} 13... Bd7 {[%clk 0:02:30.5]} 14. Nd3
{[%clk 0:02:40.9]} 14... Be8 {[%clk 0:02:29.9]} 15. Nfe5 {[%clk 0:02:39.5]}
15... Nd7 {[%clk 0:02:17.9]} 16. Nxd7 {[%clk 0:02:37.5]} 16... Bxd7 {[%clk
0:02:14.4]} 17. Ne5 {[%clk 0:02:33]} 17... Be8 {[%clk 0:02:12.3]} 18. b4 {[%clk
0:02:25.2]} 18... Bh5 {[%clk 0:02:09.5]} 19. a4 {[%clk 0:02:17.1]} 19... f4
{[%clk 0:02:02.7]} 20. b5 {[%clk 0:01:57.2]} 20... Rac8 {[%clk 0:01:40.4]} 21.
a5 {[%clk 0:01:39.9]} 21... fxg3 {[%clk 0:01:25.8]} 22. hxg3 {[%clk 0:01:35.3]}
22... Nd6 {[%clk 0:01:14.4]} 23. e3 {[%clk 0:01:21.8]} 23... Nf7 {[%clk
0:01:12.2]} 24. Nxf7 {[%clk 0:01:18]} 24... Rxf7 {[%clk 0:01:09.1]} 25. a6
{[%clk 0:01:11.3]} 25... Be2 {[%clk 0:01:02.9]} 26. Qxe2 {[%clk 0:01:07.6]} 1-0

[Event "Betsys MČR v online bleskovém šachu 2021"]
[Site "Chess.com"]
[Date "2021.04.17"]
[Round "2"]
[White "MBorkovec"]
[Black "kubaches123"]
[Result "1-0"]
[WhiteElo "2310"]
[BlackElo "1975"]
[TimeControl "180+1"]
[EndTime "9:15:30 PDT"]
[Termination "Uživatel MBorkovec zvítězil po vzdání soupeře"]

1. e4 {[%clk 0:03:00.9]} 1... c5 {[%clk 0:02:58.5]} 2. Nf3 {[%clk 0:03:00.6]}
2... d6 {[%clk 0:02:48.2]} 3. d4 {[%clk 0:03:00.7]} 3... cxd4 {[%clk 0:02:49.1]}
4. Nxd4 {[%clk 0:03:00.9]} 4... Nf6 {[%clk 0:02:49.4]} 5. Nc3 {[%clk 0:03:01.1]}
5... Nc6 {[%clk 0:02:49.8]} 6. Bg5 {[%clk 0:03:01.1]} 6... e6 {[%clk 0:02:46.1]}
7. Qd2 {[%clk 0:03:01.5]} 7... a6 {[%clk 0:02:40.7]} 8. O-O-O {[%clk 0:03:01.8]}
8... Bd7 {[%clk 0:02:39.8]} 9. Be2 {[%clk 0:02:57.4]} 9... Be7 {[%clk
0:02:37.6]} 10. f4 {[%clk 0:02:57.4]} 10... b5 {[%clk 0:02:30.4]} 11. Bf3 {[%clk
0:02:43.2]} 11... Rc8 {[%clk 0:01:55.3]} 12. Bxf6 {[%clk 0:02:22]} 12... gxf6
{[%clk 0:01:32.2]} 13. f5 {[%clk 0:02:13.5]} 13... b4 {[%clk 0:00:38.1]} 14.
fxe6 {[%clk 0:01:52]} 14... bxc3 {[%clk 0:00:29.5]} 15. exd7+ {[%clk 0:01:51.8]}
15... Qxd7 {[%clk 0:00:28]} 16. Qxc3 {[%clk 0:01:52.3]} 16... O-O {[%clk
0:00:20.4]} 17. Nf5 {[%clk 0:01:44]} 17... Ne5 {[%clk 0:00:19.4]} 18. Qd2 {[%clk
0:01:42.6]} 18... Rc7 {[%clk 0:00:19.1]} 19. Qh6 {[%clk 0:01:34.7]} 1-0

[Event "Betsys MČR v online bleskovém šachu 2021"]
[Site "Chess.com"]
[Date "2021.04.17"]
[Round "2"]
[White "VOJTASEK2009"]
[Black "Sandokanom"]
[Result "0-1"]
[WhiteElo "1298"]
[BlackElo "1772"]
[TimeControl "180+1"]
[EndTime "9:15:33 PDT"]
[Termination "Uživatel Sandokanom zvítězil na čas"]

1. e4 {[%clk 0:03:00]} 1... c5 {[%clk 0:02:59.7]} 2. Nf3 {[%clk 0:02:58.6]} 2...
e6 {[%clk 0:03:00.2]} 3. d4 {[%clk 0:02:57.6]} 3... cxd4 {[%clk 0:03:00.7]} 4.
Nxd4 {[%clk 0:02:56]} 4... Nf6 {[%clk 0:03:01.6]} 5. Nc3 {[%clk 0:02:54.7]} 5...
Bb4 {[%clk 0:03:01.3]} 6. Be2 {[%clk 0:02:45]} 6... Nxe4 {[%clk 0:02:59.7]} 7.
Bd2 {[%clk 0:02:41.5]} 7... Nxd2 {[%clk 0:02:57.5]} 8. Qxd2 {[%clk 0:02:37.5]}
8... a6 {[%clk 0:02:49.6]} 9. a3 {[%clk 0:02:35]} 9... Ba5 {[%clk 0:02:45.9]}
10. O-O {[%clk 0:02:29.9]} 10... O-O {[%clk 0:02:44.1]} 11. b4 {[%clk
0:02:16.1]} 11... Bb6 {[%clk 0:02:43.2]} 12. Nb3 {[%clk 0:02:10.5]} 12... d5
{[%clk 0:02:40.7]} 13. Bd3 {[%clk 0:01:54.7]} 13... Nc6 {[%clk 0:02:38.8]} 14.
Qf4 {[%clk 0:01:44.9]} 14... e5 {[%clk 0:02:27.2]} 15. Qg3 {[%clk 0:01:30.7]}
15... e4 {[%clk 0:02:23.9]} 16. Be2 {[%clk 0:01:15.2]} 16... Bc7 {[%clk
0:02:20.6]} 17. Qe3 {[%clk 0:00:56.8]} 17... d4 {[%clk 0:02:19.4]} 18. Nxd4
{[%clk 0:00:35.8]} 18... Qxd4 {[%clk 0:02:17.5]} 19. Qxd4 {[%clk 0:00:26.7]}
19... Nxd4 {[%clk 0:02:17.6]} 20. Nd5 {[%clk 0:00:20.1]} 20... Nxe2+ {[%clk
0:02:15.1]} 21. Kh1 {[%clk 0:00:19.5]} 21... Be5 {[%clk 0:02:14.5]} 22. Rfe1
{[%clk 0:00:17.3]} 22... Nf4 {[%clk 0:02:12.2]} 23. Nxf4 {[%clk 0:00:16]} 23...
Bxa1 {[%clk 0:02:11.5]} 24. Rxa1 {[%clk 0:00:14.5]} 24... Bf5 {[%clk 0:02:10.9]}
25. Rd1 {[%clk 0:00:12.9]} 25... Rad8 {[%clk 0:02:10.4]} 26. Re1 {[%clk
0:00:12.2]} 26... Rd2 {[%clk 0:02:08.6]} 27. f3 {[%clk 0:00:07.7]} 27... exf3
{[%clk 0:02:06.8]} 28. gxf3 {[%clk 0:00:06.6]} 28... Rxc2 {[%clk 0:02:06.7]} 29.
Rd1 {[%clk 0:00:03.4]} 29... h6 {[%clk 0:02:05.2]} 0-1

[Event "Betsys MČR v online bleskovém šachu 2021"]
[Site "Chess.com"]
[Date "2021.04.17"]
[Round "2"]
[White "patrikvagner"]
[Black "alenka777"]
[Result "1-0"]
[WhiteElo "1759"]
[BlackElo "1277"]
[TimeControl "180+1"]
[EndTime "9:15:33 PDT"]
[Termination "Uživatel patrikvagner zvítězil po vzdání soupeře"]

1. d4 {[%clk 0:03:00.9]} 1... e5 {[%clk 0:02:58.1]} 2. dxe5 {[%clk 0:02:59.6]}
2... Nc6 {[%clk 0:02:58.3]} 3. Nf3 {[%clk 0:02:59.5]} 3... d6 {[%clk 0:02:56.4]}
4. exd6 {[%clk 0:02:58.2]} 4... Bxd6 {[%clk 0:02:55]} 5. e3 {[%clk 0:02:56.5]}
5... Nf6 {[%clk 0:02:54.1]} 6. Be2 {[%clk 0:02:55.4]} 6... O-O {[%clk
0:02:53.1]} 7. O-O {[%clk 0:02:54.9]} 7... Be6 {[%clk 0:02:47.1]} 8. Nc3 {[%clk
0:02:53.1]} 8... Ng4 {[%clk 0:02:43.6]} 9. h3 {[%clk 0:02:51.5]} 9... Nge5
{[%clk 0:02:41.6]} 10. Nxe5 {[%clk 0:02:50.9]} 10... Nxe5 {[%clk 0:02:40.8]} 11.
Ne4 {[%clk 0:02:45.4]} 11... Be7 {[%clk 0:02:35.6]} 12. b3 {[%clk 0:02:42.9]}
12... Bd5 {[%clk 0:02:33]} 13. Nc3 {[%clk 0:02:34.6]} 13... Bc6 {[%clk
0:02:31.5]} 14. Bb2 {[%clk 0:02:33.5]} 14... Bh4 {[%clk 0:02:28]} 15. Qxd8
{[%clk 0:02:29.4]} 15... Raxd8 {[%clk 0:02:26.6]} 16. Rfd1 {[%clk 0:02:29.2]}
16... h6 {[%clk 0:02:19.4]} 17. Na4 {[%clk 0:02:11]} 17... Bf6 {[%clk
0:02:16.5]} 18. Nc3 {[%clk 0:02:08.5]} 18... b5 {[%clk 0:02:05]} 19. Rxd8 {[%clk
0:02:06.4]} 19... Rxd8 {[%clk 0:02:03.6]} 20. Rd1 {[%clk 0:02:06.1]} 20... Rxd1+
{[%clk 0:02:01.4]} 21. Nxd1 {[%clk 0:02:05.8]} 21... a5 {[%clk 0:01:56.4]} 22.
f4 {[%clk 0:02:02.6]} 22... Nd7 {[%clk 0:01:52.3]} 23. Bxf6 {[%clk 0:02:01.9]}
23... Nxf6 {[%clk 0:01:51.8]} 24. Nc3 {[%clk 0:02:00.2]} 24... Nd5 {[%clk
0:01:50.9]} 25. Nxd5 {[%clk 0:01:59.6]} 25... Bxd5 {[%clk 0:01:51.4]} 26. Bxb5
{[%clk 0:01:59.3]} 26... c6 {[%clk 0:01:49.9]} 27. Bd3 {[%clk 0:01:59.1]} 27...
c5 {[%clk 0:01:48.9]} 28. Kf2 {[%clk 0:01:58.9]} 28... g5 {[%clk 0:01:47.1]} 29.
c4 {[%clk 0:01:58.4]} 29... Bc6 {[%clk 0:01:45.2]} 30. fxg5 {[%clk 0:01:56.3]}
30... hxg5 {[%clk 0:01:44.7]} 31. e4 {[%clk 0:01:56.6]} 31... Kg7 {[%clk
0:01:44.2]} 32. Ke3 {[%clk 0:01:56.5]} 32... Kf6 {[%clk 0:01:43.6]} 33. g4
{[%clk 0:01:56.4]} 33... Ke5 {[%clk 0:01:42.3]} 34. Bc2 {[%clk 0:01:55.4]} 34...
f6 {[%clk 0:01:42.2]} 35. Kf3 {[%clk 0:01:52.4]} 35... Kd6 {[%clk 0:01:38.8]}
36. Kg3 {[%clk 0:01:49.4]} 36... Ke5 {[%clk 0:01:39.1]} 37. h4 {[%clk
0:01:48.9]} 37... gxh4+ {[%clk 0:01:38.4]} 38. Kxh4 {[%clk 0:01:48.1]} 38... Bd7
{[%clk 0:01:37.1]} 39. g5 {[%clk 0:01:46.7]} 39... fxg5+ {[%clk 0:01:36.6]} 40.
Kxg5 {[%clk 0:01:46.7]} 40... Bh3 {[%clk 0:01:30.4]} 41. Kg6 {[%clk 0:01:43.3]}
41... Bf1 {[%clk 0:01:30.6]} 42. Kf7 {[%clk 0:01:42]} 42... Bg2 {[%clk
0:01:30.2]} 43. Ke7 {[%clk 0:01:41.6]} 43... Bxe4 {[%clk 0:01:29.7]} 44. Bxe4
{[%clk 0:01:40.4]} 44... Kxe4 {[%clk 0:01:30.2]} 45. Kd6 {[%clk 0:01:40.2]}
45... Kd4 {[%clk 0:01:30.6]} 46. Kc6 {[%clk 0:01:39.6]} 46... Kc3 {[%clk
0:01:28.4]} 47. Kxc5 {[%clk 0:01:38.7]} 47... Kb2 {[%clk 0:01:28.8]} 48. Kb5
{[%clk 0:01:36]} 48... Kxa2 {[%clk 0:01:29.1]} 49. Kxa5 {[%clk 0:01:35.9]} 49...
Kxb3 {[%clk 0:01:29.3]} 50. c5 {[%clk 0:01:36.3]} 50... Kc4 {[%clk 0:01:29.7]}
51. c6 {[%clk 0:01:36.5]} 51... Kd5 {[%clk 0:01:30.2]} 52. c7 {[%clk 0:01:36.6]}
1-0

[Event "Betsys MČR v online bleskovém šachu 2021"]
[Site "Chess.com"]
[Date "2021.04.17"]
[Round "2"]
[White "indebol"]
[Black "pudltomik"]
[Result "1-0"]
[WhiteElo "1549"]
[BlackElo "764"]
[TimeControl "180+1"]
[EndTime "9:15:35 PDT"]
[Termination "Uživatel indebol zvítězil matem"]

1. e4 {[%clk 0:03:00.9]} 1... e6 {[%clk 0:02:55.6]} 2. d4 {[%clk 0:02:59.6]}
2... d5 {[%clk 0:02:54.4]} 3. e5 {[%clk 0:02:58.4]} 3... Nc6 {[%clk 0:02:53.2]}
4. f4 {[%clk 0:02:56]} 4... f6 {[%clk 0:02:46.1]} 5. Nf3 {[%clk 0:02:54.6]} 5...
f5 {[%clk 0:02:44.3]} 6. Bb5 {[%clk 0:02:50.6]} 6... Bd7 {[%clk 0:02:42.3]} 7.
c4 {[%clk 0:02:46.4]} 7... Bb4+ {[%clk 0:02:33.8]} 8. Bd2 {[%clk 0:02:40.1]}
8... Be7 {[%clk 0:02:29.9]} 9. cxd5 {[%clk 0:02:38.4]} 9... exd5 {[%clk
0:02:23.9]} 10. O-O {[%clk 0:02:36.4]} 10... Nb8 {[%clk 0:02:16.6]} 11. Nc3
{[%clk 0:02:32.6]} 11... Bxb5 {[%clk 0:02:15.9]} 12. Nxb5 {[%clk 0:02:33.5]}
12... Qd7 {[%clk 0:02:13.7]} 13. Nc3 {[%clk 0:02:21.3]} 13... Nc6 {[%clk
0:02:10.7]} 14. Re1 {[%clk 0:02:20]} 14... O-O-O {[%clk 0:02:09.4]} 15. a3
{[%clk 0:02:14.3]} 15... Kb8 {[%clk 0:02:08]} 16. Rc1 {[%clk 0:02:13.7]} 16...
b6 {[%clk 0:02:07.2]} 17. Kh1 {[%clk 0:02:04.7]} 17... g6 {[%clk 0:01:59.1]} 18.
Qa4 {[%clk 0:01:53.7]} 18... h5 {[%clk 0:01:56.3]} 19. Nb5 {[%clk 0:01:46.6]}
19... Bh4 {[%clk 0:01:47.6]} 20. e6 {[%clk 0:01:38.5]} 20... Qe7 {[%clk
0:01:26.4]} 21. Nxh4 {[%clk 0:01:32.1]} 21... Qxh4 {[%clk 0:01:23.8]} 22. Rxc6
{[%clk 0:01:29.8]} 22... a5 {[%clk 0:01:02.1]} 23. Rxc7 {[%clk 0:01:22.2]} 23...
Rc8 {[%clk 0:00:58.1]} 24. Rxc8+ {[%clk 0:01:18.1]} 24... Kxc8 {[%clk
0:00:57.5]} 25. Rc1+ {[%clk 0:01:19]} 25... Kd8 {[%clk 0:00:57.1]} 26. Nd6
{[%clk 0:01:10.7]} 26... Ke7 {[%clk 0:00:56.5]} 27. Qd7+ {[%clk 0:01:08.8]}
27... Kf6 {[%clk 0:00:54.6]} 28. Qf7# {[%clk 0:01:07.7]} 1-0

[Event "Betsys MČR v online bleskovém šachu 2021"]
[Site "Chess.com"]
[Date "2021.04.17"]
[Round "2"]
[White "pavelchrz"]
[Black "BrunoT2"]
[Result "1-0"]
[WhiteElo "1710"]
[BlackElo "1189"]
[TimeControl "180+1"]
[EndTime "9:15:41 PDT"]
[Termination "Uživatel pavelchrz zvítězil po vzdání soupeře"]

1. e4 {[%clk 0:03:00.9]} 1... e5 {[%clk 0:02:59.4]} 2. Nf3 {[%clk 0:02:57.3]}
2... Nc6 {[%clk 0:02:58]} 3. d4 {[%clk 0:02:55.2]} 3... exd4 {[%clk 0:02:56.2]}
4. Bc4 {[%clk 0:02:53]} 4... Bb4+ {[%clk 0:02:42.9]} 5. c3 {[%clk 0:02:51.6]}
5... dxc3 {[%clk 0:02:41.2]} 6. bxc3 {[%clk 0:02:49.2]} 6... Bc5 {[%clk
0:02:39.8]} 7. Bxf7+ {[%clk 0:02:45.7]} 7... Kxf7 {[%clk 0:02:36.5]} 8. Qd5+
{[%clk 0:02:46]} 8... Kf8 {[%clk 0:02:35.4]} 9. Qxc5+ {[%clk 0:02:46.1]} 9...
Qe7 {[%clk 0:02:35.9]} 10. Qc4 {[%clk 0:02:30.7]} 10... d6 {[%clk 0:02:30.5]}
11. Bg5 {[%clk 0:02:20.6]} 11... Qe6 {[%clk 0:02:26.7]} 12. Qe2 {[%clk
0:02:11.5]} 12... h6 {[%clk 0:02:14.9]} 13. Bh4 {[%clk 0:02:07.8]} 13... g5
{[%clk 0:02:14]} 14. Bg3 {[%clk 0:02:07.8]} 14... Nf6 {[%clk 0:02:03.7]} 15.
Nbd2 {[%clk 0:02:07.5]} 15... g4 {[%clk 0:01:59.8]} 16. Nh4 {[%clk 0:02:03.5]}
16... d5 {[%clk 0:01:51.3]} 17. Ng6+ {[%clk 0:02:01.8]} 17... Kg7 {[%clk
0:01:49.7]} 18. Nxh8 {[%clk 0:01:59.1]} 18... Kxh8 {[%clk 0:01:50]} 19. h3
{[%clk 0:01:42.3]} 19... dxe4 {[%clk 0:01:43.5]} 20. hxg4 {[%clk 0:01:39.3]}
20... Qxg4 {[%clk 0:01:37.3]} 21. Qxg4 {[%clk 0:01:34.4]} 21... Nxg4 {[%clk
0:01:33.7]} 22. Nxe4 {[%clk 0:01:32.5]} 22... Bd7 {[%clk 0:01:26.5]} 23. O-O-O
{[%clk 0:01:27.5]} 23... Bf5 {[%clk 0:01:22.5]} 24. f3 {[%clk 0:01:17.2]} 24...
Ne3 {[%clk 0:01:13.6]} 25. Rxh6+ {[%clk 0:01:15.7]} 25... Kg7 {[%clk 0:01:08.8]}
26. Rdh1 {[%clk 0:01:16.3]} 26... Nxg2 {[%clk 0:00:58.3]} 27. Ng5 {[%clk
0:01:06.2]} 1-0

[Event "Betsys MČR v online bleskovém šachu 2021"]
[Site "Chess.com"]
[Date "2021.04.17"]
[Round "2"]
[White "tondapesek"]
[Black "Alesbar"]
[Result "0-1"]
[WhiteElo "990"]
[BlackElo "1637"]
[TimeControl "180+1"]
[EndTime "9:15:41 PDT"]
[Termination "Uživatel Alesbar zvítězil po vzdání soupeře"]

1. e4 {[%clk 0:03:00.9]} 1... c5 {[%clk 0:02:59.4]} 2. Nf3 {[%clk 0:03:00.6]}
2... d6 {[%clk 0:02:59.2]} 3. Nc3 {[%clk 0:03:00.2]} 3... e6 {[%clk 0:02:58.6]}
4. d3 {[%clk 0:03:00.3]} 4... Nf6 {[%clk 0:02:58.2]} 5. g3 {[%clk 0:03:00]} 5...
Be7 {[%clk 0:02:57.8]} 6. Bg2 {[%clk 0:02:59.8]} 6... Nc6 {[%clk 0:02:57.5]} 7.
Be3 {[%clk 0:02:58.6]} 7... a6 {[%clk 0:02:56.8]} 8. O-O {[%clk 0:02:58.4]} 8...
O-O {[%clk 0:02:55.9]} 9. Re1 {[%clk 0:02:57.6]} 9... Qc7 {[%clk 0:02:55.5]} 10.
d4 {[%clk 0:02:55.4]} 10... cxd4 {[%clk 0:02:53.3]} 11. Bxd4 {[%clk 0:02:55.6]}
11... Rb8 {[%clk 0:02:33.9]} 12. Be3 {[%clk 0:02:53.1]} 12... b5 {[%clk
0:02:31.2]} 13. a3 {[%clk 0:02:51.4]} 13... Bb7 {[%clk 0:02:26.7]} 14. b4 {[%clk
0:02:50.9]} 14... Ne5 {[%clk 0:02:24.7]} 15. Nxe5 {[%clk 0:02:49.7]} 15... dxe5
{[%clk 0:02:24.3]} 16. f3 {[%clk 0:02:49.7]} 16... Qxc3 {[%clk 0:02:22.9]} 17.
Bd2 {[%clk 0:02:47.5]} 17... Qc7 {[%clk 0:02:19.8]} 18. Be3 {[%clk 0:02:44]}
18... Rfd8 {[%clk 0:02:18.1]} 19. Qe2 {[%clk 0:02:43.2]} 19... Rbc8 {[%clk
0:02:16.3]} 20. Ra2 {[%clk 0:02:42.1]} 20... Qc4 {[%clk 0:02:14.6]} 21. Qxc4
{[%clk 0:02:41.2]} 21... Rxc4 {[%clk 0:02:13.7]} 22. Bf1 {[%clk 0:02:40.5]}
22... Rcc8 {[%clk 0:02:11.9]} 23. Kg2 {[%clk 0:02:39]} 23... h6 {[%clk
0:02:10.5]} 24. Rc1 {[%clk 0:02:36.3]} 24... Ne8 {[%clk 0:02:02]} 25. c3 {[%clk
0:02:36.1]} 25... f5 {[%clk 0:01:54.2]} 26. exf5 {[%clk 0:02:34.3]} 26... exf5
{[%clk 0:01:53.8]} 27. Bb6 {[%clk 0:02:32.3]} 27... Rd7 {[%clk 0:01:48.2]} 28.
Be3 {[%clk 0:02:26.9]} 28... Bf6 {[%clk 0:01:46.4]} 29. Rd2 {[%clk 0:02:22.4]}
29... Rxd2+ {[%clk 0:01:42.9]} 30. Bxd2 {[%clk 0:02:22]} 30... e4 {[%clk
0:01:41.8]} 31. f4 {[%clk 0:02:14.7]} 31... Nd6 {[%clk 0:01:40.5]} 32. Be3
{[%clk 0:02:13.5]} 32... Nc4 {[%clk 0:01:39.3]} 33. Bxc4+ {[%clk 0:02:12]} 33...
Rxc4 {[%clk 0:01:38.3]} 34. Bd2 {[%clk 0:02:10.6]} 34... Kf7 {[%clk 0:01:36.1]}
35. Kf2 {[%clk 0:02:09.6]} 35... g5 {[%clk 0:01:33.5]} 36. fxg5 {[%clk
0:02:08.6]} 36... Bxg5 {[%clk 0:01:33.1]} 37. Bxg5 {[%clk 0:02:07]} 37... hxg5
{[%clk 0:01:33]} 38. h4 {[%clk 0:02:06.1]} 38... Kg6 {[%clk 0:01:30.9]} 39. hxg5
{[%clk 0:02:05.7]} 39... Kxg5 {[%clk 0:01:30.4]} 40. Rc2 {[%clk 0:02:00.1]}
40... Kg4 {[%clk 0:01:28.6]} 41. Rc1 {[%clk 0:01:57.5]} 41... Rc8 {[%clk
0:01:20.5]} 42. Rc2 {[%clk 0:01:55]} 42... Rd8 {[%clk 0:01:19.9]} 43. Rb2 {[%clk
0:01:47.1]} 43... Rd3 {[%clk 0:01:17.9]} 44. Rc2 {[%clk 0:01:43.6]} 44... Rxg3
{[%clk 0:01:15.8]} 45. Re2 {[%clk 0:01:41]} 45... Rxc3 {[%clk 0:01:12.8]} 46.
Re3 {[%clk 0:01:41.1]} 46... Rxe3 {[%clk 0:01:11.8]} 47. Kxe3 {[%clk 0:01:41.2]}
47... f4+ {[%clk 0:01:11.4]} 48. Kf2 {[%clk 0:01:40.6]} 48... e3+ {[%clk
0:01:10.3]} 49. Ke2 {[%clk 0:01:39.6]} 49... Kg3 {[%clk 0:01:09.7]} 0-1